Cogmind - Beta 17.1 @@@ ROGUE MODE // 2026.09.01 @ 20:08:43 Player: naththebg Result: Self-destructed Performance ------------- Evolutions (2) 1000 Regions Visited (3) 600 Robots Destroyed (20) 100 Value Destroyed (498) 498 Prototype IDs (1) 20 Alien Tech Used (0) 0 Bonus (5600) 5600 TOTAL SCORE: 7818 Bonus ------- Prayed to X0-1V1 5000 Major X0-1V1 Interference 600 Cogmind --------- Core Integrity 450/450 Matter 40/900 Energy 1356/1360 System Corruption 4% Temperature Cool (0) Movement Treading (480) Ox4 Location -8/Materials Parts ------- > --- POWER (1) -------- Light Nuclear Core > --- PROPULSION (3) --- Light Treads Light Treads Subdweller Monowheel > --- UTILITY (4) ------ Improved Heat Sink High-capacity Storage Unit Scrap Shield > --- WEAPON (3) ------- Subdweller Beam Cannon Gauss Cannon Gauss Cannon > --- INVENTORY (21) --- Ion Engine Light Ion Engine Light Treads Aluminum Leg Wheel Wheel Heat Sink Subdweller Optics X0-1V1's Piety Tracker EM Shotgun Small Laser Assault Rifle Light Assault Rifle Shotgun Shotgun Battle Rifle Subdweller Machine Gun Gauss Cannon Gauss Cannon Mace Peak State ------------ > --- POWER ------------ Light Nuclear Core > --- PROPULSION ------- Light Treads Light Treads Subdweller Monowheel > --- UTILITY ---------- Improved Heat Sink High-capacity Storage Unit Scrap Shield > --- WEAPON ----------- Subdweller Beam Cannon Gauss Cannon Gauss Cannon > --- INVENTORY -------- Ion Engine Light Ion Engine Aluminum Leg Wheel Wheel Heat Sink Subdweller Optics X0-1V1's Piety Tracker EM Shotgun Small Laser Assault Rifle Light Assault Rifle Shotgun Shotgun Battle Rifle Subdweller Machine Gun Gauss Cannon Gauss Cannon Mace [Rating: 29] Favorites ----------- Power Light Nuclear Core Engine Light Ion Engine Power Core Light Nuclear Core Propulsion Light Treads Treads Light Treads Wheel Subdweller Monowheel Utility Improved Heat Sink Device Improved Heat Sink Storage High-capacity Storage Unit Protection Scrap Shield Weapon Assault Rifle Energy Gun Heavy EM Pulse Gun Energy Cannon Subdweller Beam Cannon Ballistic Gun Assault Rifle Ballistic Cannon Gauss Cannon Build | -11 -10 -10 -8 ------- Run | Yrd Mat Sub Mat Slots Evolved 4 | . . . 4 Power . | . . . . Propulsion 1 | . . . 1 Utility 2 | . . . 2 Weapon 1 | . . . 1 Parts Attached 20 | 6 7 1 6 Power 3 | 1 2 . . Engine 2 | 1 1 . . Core 1 | . 1 . . Reactor . | . . . . Propulsion 4 | 2 . . 2 Treads 3 | 2 . . 1 Leg . | . . . . Wheel 1 | . . . 1 Hover . | . . . . Flight . | . . . . Utility 6 | 1 4 . 1 Device 3 | . 3 . . Storage 2 | 1 1 . . Processor . | . . . . Hackware . | . . . . Protection 1 | . . . 1 Artifact . | . . . . Weapon 7 | 2 1 1 3 Energy Gun 2 | 1 1 . . Energy Cannon 1 | . . 1 . Ballistic Gun 2 | 1 . . 1 Ballistic Cannon 2 | . . . 2 Launcher . | . . . . Special Weapon . | . . . . Impact Weapon . | . . . . Slashing Weapon . | . . . . Piercing Weapon . | . . . . Special Melee Weapon . | . . . . Unidentified Prototypes 1 | . 1 . . Parts Lost 1 | . . 1 . Power . | . . . . Propulsion . | . . . . Utility . | . . . . Weapon 1 | . . 1 . Highest Loss Streak 1 | . . 1 . To Critical Strikes . | . . . . Average Backups 10 | 4 7 12 19 Power 1 | . 1 2 2 Propulsion 3 | 2 3 3 3 Utility 1 | . . 2 3 Weapon 4 | . 1 4 10 Tool/Special . | . . . . Unused Backups 16 | . 1 . 15 Power 1 | . . . 1 Propulsion 4 | . 1 . 3 Utility 3 | . . . 3 Weapon 8 | . . . 8 Tool/Special . | . . . . Average Slot Usage (%) 96 | . 97 100 83 Engine 6 | . 13 . . Core 6 | . . 14 9 Treads 26 | . 28 28 18 Device 11 | . 11 14 9 Storage 13 | . 14 14 9 Protection 1 | . . . 8 Energy Gun 8 | . 14 5 . Energy Cannon 4 | . . 8 6 Ballistic Gun 12 | . 14 14 3 Ballistic Cannon 2 | . . . 14 Peak Build Rating 29 | 6 21 16 29 Average Rating 14 | 3 10 14 26 On Entrance 8 | . 6 12 16 Avg Prop Armor Cover (%) 7 | . . . 7 Naked Turns . | . . . . Heaviest Build 86 | 12 51 56 86 Greatest Support 40 | 40 40 40 40 Greatest Overweight (x) 4 | 1 1 1 4 Average Overweight (x) . | . . 1 3 Largest Inventory Capacity 21 | 8 20 21 21 Average Capacity 16 | 7 11 20 21 Most Carried 21 | 6 8 19 21 Average Carried 11 | 4 7 13 19 Final Capacity 21 | 8 20 21 21 Final Carried 20 | 6 8 19 20 Class Distribution -------------------- 88% | Mutant 7% | Subdweller-Tank 3% | Tank Dominant Class ---------------- Mutant | -10/Materials Mutant | -10/Subcaves Subdweller-Tank | -8/Materials Resources | -11 -10 -10 -8 ----------- Run | Yrd Mat Sub Mat Matter Collected 490 | 236 166 . 88 Remotely . | . . . . Salvage Created 671 | . 480 10 181 Parts 43 | . 35 . 8 Haulers Intercepted 1 | . 1 . . Recyclers Shooed . | . . . . Parts Field Recycled . | . . . . Retrieved Matter . | . . . . Parts Self-Destructed 7 | . . 7 . Prevented . | . . . . Parts Restored . | . . . . Kills | -11 -10 -10 -8 ------- Run | Yrd Mat Sub Mat Combat Hostiles Destroyed 14 | . 11 1 2 Guns 10 | . 10 . . Cannons 2 | . . . 2 AOE 2 | . 1 1 . Classes Destroyed 7 | . 5 . 2 Builder 1 | . 1 . . Hauler 1 | . 1 . . Recycler 1 | . . . 1 Watcher 3 | . 2 . 1 Swarmer 4 | . 3 1 . Grunt 8 | . 8 . . Sentry 2 | . . . 2 Best Kill Streak 3 | . 3 1 2 Combat Bots Only 3 | . 3 1 1 Max Kills in Single Turn 2 | . 2 1 1 Gunslinging . | . . . . Exploded 1 | . 1 1 . Melee . | . . . . Uniques/NPCs Destroyed . | . . . . Combat | -11 -10 -10 -8 -------- Run | Yrd Mat Sub Mat Hostile Shots Fired 98 | . 46 48 4 Missed 31 | . 11 18 2 Hits 67 | . 35 30 2 Projectile 67 | . 35 30 2 Critical Strikes 1 | . . . 1 Damage Taken 624 | . 412 182 30 Core 115 | . 79 36 . Absorbed by Shields . | . . . . Core Remaining (%) 88 | 100 . 76 . Volleys Fired 62 | . 42 4 16 Largest 3 | . 2 2 3 Hottest 160 | . 70 80 160 Shots Fired 133 | . 81 7 45 Gun 92 | . 81 5 6 Cannon 41 | . . 2 39 Launcher . | . . . . Special . | . . . . Kinetic 83 | . 42 3 38 Thermal 41 | . 32 2 7 Explosive . | . . . . Electromagnetic 9 | . 7 2 . Robot Hit Streak 7 | . 7 5 3 Robot Miss Streak 6 | . 4 . 6 Penetration Max . | . . . . Secondary Targets 3 | . 3 . . Max Gunslinging Chain 1 | . 1 . . Shots Hit Robots 74 | . 52 5 17 Core Hits 31 | . 24 2 5 Critical Kills . | . . . . Critical Parts Destroyed . | . . . . Critical Strikes 5 | . 4 . 1 Burn 4 | . 4 . . Blast 1 | . . . 1 Melee Attacks . | . . . . Impact . | . . . . Slashing . | . . . . Piercing . | . . . . Sneak Attacks . | . . . . Combat Hostiles . | . . . . Follow-up Attacks . | . . . . Damage Inflicted 1289 | . 758 72 459 Guns 765 | . 682 49 34 Cannons 425 | . . . 425 Explosions 99 | . 76 23 . Melee . | . . . . Ramming . | . . . . Kinetic 755 | . 301 24 430 Thermal 414 | . 362 23 29 Explosive . | . . . . Electromagnetic 120 | . 95 25 . Impact . | . . . . Slashing . | . . . . Piercing . | . . . . Highest Corruption 4 | . . . 4 Average Corruption 3 | . . . 3 Corruption Purged . | . . . . Corruption Blocked . | . . . . Effects 1 | . . . 1 Alerts 1 | . . . 1 Overload Shots . | . . . . Overflow Damage 6 | . . . 6 Projectiles 6 | . . . 6 Explosions . | . . . . Melee . | . . . . Knockbacks 1 | . . . 1 Impact . | . . . . Kinetic 1 | . . . 1 Secondary . | . . . . Self-Inflicted Damage 52 | . 29 23 . Shots 2 | . 1 1 . Rammed 1 | 1 . . . Targets Rammed 1 | 1 . . . Kicked . | . . . . Crushed . | . . . . Highest Temperature 171 | . 171 . 142 Average Temperature 58 | . 62 . 50 Received Heat Transfer 327 | . 174 126 27 Siege Activations . | . . . . Martial Activations . | . . . . Shielding Activations . | . . . . Robots Disrupted . | . . . . Combat Hostiles . | . . . . Robots Corrupted . | . . . . Combat Hostiles . | . . . . Parts Fried . | . . . . Impact Corruptions . | . . . . Robots Melted . | . . . . Combat Hostiles . | . . . . Parts Melted 3 | . 3 . . Heat Transferred 1284 | . 1197 50 37 Parts Sabotaged . | . . . . Parts Stolen . | . . . . Parts Stripped . | . . . . Power Chain Reactions 2 | . 1 1 . Alert | -11 -10 -10 -8 ------- Run | Yrd Mat Sub Mat Maximum Alert Level . | . . . . Low Security (%) 100 | 100 100 . 100 Level 1 . | . . . . Level 2 . | . . . . Level 3 . | . . . . Level 4 . | . . . . Level 5 . | . . . . High Security . | . . . . Max Security . | . . . . Sterilizations 1 | . . . 1 Peak Influence 121 | . 121 . 35 Initial . | . . . . Average 35 | . 45 . 15 Influence Increases 500 | . 292 110 98 Destroy 0b10 Robot/C 280 | . 220 20 40 Destroy 0b10 Robot/NC 30 | . 20 . 10 Destroy Leader 68 | . 46 . 22 Destroy Structure 32 | . 6 . 26 Lose Combat Pursuer 90 | . . 90 . Influence Decreases 472 | . 240 162 70 Entered New Map 26 | . . 26 . Time Decay 436 | . 240 126 70 Lost Part 10 | . . 10 . Squads Dispatched 1 | . 1 . . Investigation . | . . . . Extermination . | . . . . Reinforcement 1 | . 1 . . Assault . | . . . . Garrison . | . . . . Intercept . | . . . . Searches Triggered . | . . . . Construction Impeded . | . . . . Haulers Reinforced . | . . . . Active Scanning Responses . | . . . . Cargo Convoy Interrupts . | . . . . Stealth | -11 -10 -10 -8 --------- Run | Yrd Mat Sub Mat Distress Signals 3 | . 2 . 1 Communications Jammed . | . . . . Distress Signals . | . . . . Times Spotted 24 | . 14 6 4 Peak Tracking Total 5 | . 5 4 2 Tactical Retreats 2 | . . 2 . Traps | -11 -10 -10 -8 ------- Run | Yrd Mat Sub Mat Traps Triggered 2 | . . . 2 Indirectly . | . . . . Trap Hack Attempts . | . . . . Triggered . | . . . . Disarmed . | . . . . Reprogrammed . | . . . . Reused . | . . . . Traps Extracted . | . . . . Installed . | . . . . Triggered . | . . . . Machines | -11 -10 -10 -8 ---------- Run | Yrd Mat Sub Mat Machines Disabled . | . . . . Max in Single Turn . | . . . . Machines Repaired . | . . . . Machines Dismantled . | . . . . Machines Sabotaged . | . . . . Overloaded Fab Kills . | . . . . Hacking | -11 -10 -10 -8 --------- Run | Yrd Mat Sub Mat Machines Accessed 2 | . 2 . . Terminals 1 | . 1 . . Fabricators . | . . . . Repair Stations . | . . . . Recycling Units 1 | . 1 . . Scanalyzers . | . . . . Garrison Access . | . . . . Total Hacks 5 | . 5 . . Successful 1 | . 1 . . Failed 4 | . 4 . . Catastrophic . | . . . . Database Lockouts . | . . . . Manual 4 | . 4 . . Terminals 2 | . 2 . . Fabricators . | . . . . Repair Stations . | . . . . Recycling Units 3 | . 3 . . Scanalyzers . | . . . . Garrison Access . | . . . . Terminal Hacks . | . . . . Fabricator Hacks . | . . . . Repair Station Hacks . | . . . . Recycling Unit Hacks . | . . . . Scanalyzer . | . . . . Garrison Access Hacks . | . . . . Unauthorized Hacks 1 | . 1 . . Terminals 1 | . 1 . . Skim 1 | . 1 . . Fabricators . | . . . . Repair Stations . | . . . . Recycling Units . | . . . . Scanalyzers . | . . . . Garrison Access . | . . . . Data Cores Recovered . | . . . . Used . | . . . . Hacking Detections 2 | . 2 . . Full Trace Events 1 | . 1 . . Feedback Events . | . . . . Feedback Blocked . | . . . . Robot Schematics Acquired . | . . . . Robots Built . | . . . . Authchips . | . . . . Time . | . . . . Total Robot Build Rating . | . . . . Part Schematics Acquired . | . . . . Parts Built . | . . . . Authchips . | . . . . Time . | . . . . Total Part Build Rating . | . . . . Part Studies Acquired . | . . . . Parts Repaired . | . . . . Time . | . . . . Parts Recycled . | . . . . Recycled Matter . | . . . . Retrieved Matter . | . . . . Retrieved Components . | . . . . Parts Scanalyzed . | . . . . Part Schematics Acquired . | . . . . Parts Damaged . | . . . . Bothacking | -11 -10 -10 -8 ------------ Run | Yrd Mat Sub Mat Used RIF Installer . | . . . . Robots Hacked . | . . . . Non-combat . | . . . . Combat . | . . . . Robot Hacks Applied . | . . . . Relay Couplers Released . | . . . . Fabnet Peak Effective % . | . . . . Robots Rewired . | . . . . Allies Hacked . | . . . . Hacks Repelled . | . . . . Allies | -11 -10 -10 -8 -------- Run | Yrd Mat Sub Mat Total Allies . | . . . . Largest Group . | . . . . Highest-Rated Group . | . . . . Highest-Rated Ally . | . . . . Total Orders . | . . . . Ally Attacks . | . . . . Total Damage . | . . . . Kills . | . . . . Allies Corrupted . | . . . . Allies Melted . | . . . . X0-1V1 Amusement Gains 37 | . 7 . 30 Average Entertainment 12 | . 4 12 23 Good Acts 14 | . 1 11 2 Bad Acts 3 | . . 2 1 Intel | -11 -10 -10 -8 ------- Run | Yrd Mat Sub Mat Active Infowar (turns) . | . . . . Robot Analysis Total . | . . . . Derelict Logs Recovered 2 | . . 2 . Drone Launches . | . . . . Drone Recoveries . | . . . . Exploration | -11 -10 -10 -8 ------------- Run | Yrd Mat Sub Mat Turns Passed 1379 | 59 619 504 197 Spaces Moved 547 | 37 243 203 64 Core 17 | 17 . . . Treads 489 | 20 243 203 23 Legs . | . . . . Wheels 41 | . . . 41 Hover . | . . . . Flight . | . . . . Fastest Speed 50 | 50 160 240 150 Average Speed 201 | 114 183 240 199 Slowest Speed 320 | 160 240 240 320 Overloaded Moves . | . . . . Propulsion Burnouts . | . . . . Robots Hopped . | . . . . Potential Cave-ins . | . . . . Cave-ins Triggered . | . . . . Exploration Rate (%) 19 | 3 38 25 11 Regions Visited 3 Branch Regions 1 Pre-discovered Areas 1 | . . 1 . Known Exits Taken 1 | . . 1 . Unknown Exits Taken 2 | 1 1 . . Scrap Searched . | . . . . Spaces Dug . | . . . . Terrain Destroyed 30 | . 5 1 24 Melee . | . . . . Projectile 24 | . . . 24 AOE 6 | . 5 1 . Terrain Rammed . | . . . . Walls Destroyed . | . . . . Machines Disabled . | . . . . Actions | -11 -10 -10 -8 --------- Run | Yrd Mat Sub Mat Total 699 | 51 339 214 95 Wait 40 | . 35 1 4 Move 544 | 36 242 202 64 Hop . | . . . . Pick Up 23 | 8 5 6 4 Fast Attach 7 | 4 2 1 . Attach 6 | 2 1 . 3 Detach . | . . . . Swap 9 | . 5 . 4 Drop 7 | . 7 . . Fire 62 | . 42 4 16 Melee . | . . . . Ram . | . . . . Kick . | . . . . Crush 1 | 1 . . . Escape Stasis . | . . . . Rewire . | . . . . Trap . | . . . . Miscellaneous . | . . . . Route ------- -11/Scrapyard -10/Materials (discovered 2 exits: [*Mat] / [*Sub]) -10/Subcaves (discovered 3 exits: *Mat x2 / *Rec) -8/Materials History --------- Turn | Location | Event 12 | -11/Scrapyard | Discovered new exit (range 16) 60 | -11/Scrapyard | Entered Materials 313 | -10/Materials | Build established: Mutant 369 | -10/Materials | Discovered new exit (range 7) 376 | -10/Materials | Prayed at D.C.S.S. Altar Unit 432 | -10/Materials | Discovered new exit (range 16) 679 | -10/Materials | Entered Subcaves 680 | -10/Subcaves | Approached by a straggling Scientist 701 | -10/Subcaves | Inventory capacity permanently improved by X0-1V1 (+1; -100 max core) 704 | -10/Subcaves | A swath of the cavern ceiling suddenly collapsed 748 | -10/Subcaves | X0-1V1 activates XOMVISION 776 | -10/Subcaves | Identified exit to Recycling 776 | -10/Subcaves | X0-1V1 revealed exit location to -8/Recycling 812 | -10/Subcaves | Learned 4 Materials zone layouts 829 | -10/Subcaves | X0-1V1 sent you into danger 1049 | -10/Subcaves | Discovered new exit (range 8) 1050 | -10/Subcaves | Shifting Twisted Machinery released Scrap Shield 1171 | -10/Subcaves | Identified exit to Materials 1171 | -10/Subcaves | X0-1V1 revealed exit location to -8/Materials 1183 | -10/Subcaves | Entered Materials 1183 | -8/Materials | Evolved 4 slots: Propulsion x1, Utility x2, Weapon x1 1187 | -8/Materials | X0-1V1 made a cryptic comment about sterilization and BL-4Z3 1214 | -8/Materials | X0-1V1 put everyone to sleep 1378 | -8/Materials | Sterilization system engaged 1378 | -8/Materials | Non-combat units ordered to evacuate 1380 | -8/Materials | Self-destructed Last Messages --------------- 01314_ System corrupted: IFF burst signal emitted. 01314_ X0-1V1 is amused. 01336_ U-05 Engineer builds a Wall. 01339_ U-05 Engineer builds a Door. 01340_ U-05 Engineer builds a Wall. 01348_ Y-45 Defender Lgt. Armor Plating blasted off. 01348_ Y-45 Defender springs to life. 01348_ Critical hit (Burn: +37). 01351_ Your Lgt. Nuclear Core, Lgt. Treads, Lgt. Treads, Imp. Heat Sink briefly glow, restoring some integrity. 01351_ Y-45 Defender destroyed. 01366_ R-06 Scavenger collects Beam Rifle. 01366_ Slug penetrates R-06 Scavenger. 01366_ R-06 Scavenger destroyed. 01374_ R-06 Scavenger collects Beam Rifle. 01375_ Acquired 2 matter. 01376_ U-05 Engineer builds a Wall. 01378_ ALERT: Persistent threat exposed, engaging Materials sterilization system. 01378_ ALERT: All non-combat units evacuate. Map ----- +----------------------------------------------------+ | ?????????????????????????????????????? # """ | | ??????????????????????????????????????######## | | ??????????????????????????????????????######## """ | | ?????????????????????????????????????? # """ | | ?????????????????????????????????????? """ # """ | | ?????????????????????????????????????? """ # | | ?????????????????????????????????????? """ ##### | | ?????????????????????????????????????? #??? | | ?????????????????????????????????????? ##??? | | ?????????????????????????????????????? #???? | | ?????????????????????????????????????? #???? | | ?????????????????????????????????????? #???? | | ??????????????# #?????# """ ## #???????????? | | ??????????????# #?????# "Y" ## #???????????? | | ??????????????# #?????# """ ## #???????????? | | ??????????????# #####?# ## #???????????? | | ??????????????# # ############## #???????????? | | ??????????????# # # "" # #???????????? | | ?????????????## # # """ ""S # #???????????? | | ????????????? # # """ "" # #???????????? | | ????????????? # # """ # #???????????? | | ????????????? # # # #???????????? | | ?????????????###### ####+######### ##??????????? | | ####################+### % +??????????? | | %r #??????????? | | @!% u ; ????????? | | uu u m ###### ???????????? | | ############## % ;#???# ???????????? | | #?? ############### ???????????? | | #?? """ ## ## ???????????? | | ]] #??""""" ## """"""" # ???????????? | | ]] # ?""""" ## """"""" # T" ???????????? | | % + """"" ## """"""" + " ???????????? | | # """ ## """"""" # ???????????? | | % ###### # ## """"""" # ???????????? | | ##??#" # ## ## ???????????? | | ^ ##?###+#?#################### ## ???????????? | | ^ ^##! ??????????????????????????????????????? | | # ?? ??????????????????????????????????????? | | # """??????????????????????????????????????? | | + """"??????????????????????????????????????? | | % # """"??????????????????????????????????????? | | # """"??????????????????????????????????????? | | ##### ""???????????????????????????????????????? | | #####? ?????????????????????????????????????? | | #???????####?????????????????????????????????????? | | #????????????????????????????????????????????????? | | ????????????????????????????????????????????????? | | ????????????????????????????????????????????????? | | ????????????????????????????????????????????????? | +----------------------------------------------------+ Best States ------------- Heat Dissipation 45 Energy Generation 14 Energy Capacity 1360 Matter Stores 300 Matter Capacity 900 Sight Range 22 Terrain Scan Density 10 Armor Coverage 800 Evasion (%) 50 Recoil Reduction 2 Item Schematics ----------------- None Robot Schematics ------------------ None Fabricated ------------ Nothing Repaired ---------- Nothing Studied --------- None Alien Tech Used ----------------- None Achievements -------------- None Challenges ------------ None Game ------ Seed IntegratedGodStreamer Manual? 0 Play Time 00:08:05 Cumulative 610.3 hours Start 2026.09.01 @ 20:01:42 End 2026.09.01 @ 20:08:43 Sessions 1 Manual Loads 0 Difficulty Rogue Special Mode None Game No. 338 Rogue 338 Adventurer 0 Explorer 0 Win Type - Total 20 Types 10/1/3/1/1/0/1/1/0/2 Lore% 86 Gallery% 84 Achievement% 76 Wizard Run 0 Options --------- Layout 0 ASCII 0 Keyboard 0 Movement Mouse Keybinds 0 Fullscreen 1 Font 18/SmallcapsGlow Map View 76x50 Zoom Use 0% Tactical HUD 1 Map Filters NONE Filters NONE Steam 1 RUN: 7229df19-248f-4d7f-95a8-9cc36120b6a9